bitfinex-derivatives/quotes_ETHF0:USTF0_20210405
["timestamp","ask_amount","ask_price","bid_price","bid_amount"]
[1617643243766,2.5656,2093.4,2091.1,12.7352]
[1617643243968,2.5656,2093.4,2091.2,5.9]
[1617643244166,2.5656,2093.4,2093.3,5.73]
[1617643244368,2.90695,2093.4,2092.6,2.90695]
[1617643244567,2.90695,2093.4,2092.7,5.75]
[1617643244768,2.90695,2093.4,2093.3,5.75]
[1617643244967,2.90695,2093.4,2092.8,13.5181]
[1617643245168,2.90695,2093.4,2092.8,19.3281]
[1617643245368,2.90695,2093.4,2093.3,5.97]
[1617643245769,2.90695,2093.4,2092.9,2.7]
[1617643246169,2.90695,2093.4,2092.8,13.5181]
[1617643246170,2.90695,2093.4,2093.3,6.01]
[1617643246368,2.90695,2093.4,2092.9,5.87]
[1617643246768,2.90695,2093.4,2093.3,5.97]
[1617643246969,2.90695,2093.4,2092.9,5.99]
[1617643247369,2.90695,2093.4,2093.3,5.87]
[1617643247568,72.2718,2094.1,2093.3,2.5185]
[1617643247972,72.2718,2094.1,2093.3,8.3285]
[1617643248372,2.90695,2093.4,2093.3,8.3285]
[1617643248771,72.2718,2094.1,2093.3,8.3285]
[1617643249672,72.2718,2094.1,2093.3,5.81]
[1617643250272,2.90695,2093.4,2093.1,5.84]
[1617643250472,2.90695,2093.4,2092.8,13.5181]
[1617643250675,2.90695,2093.4,2092.9,5.86]
[1617643250873,2.90695,2093.4,2093.2,5.89]
[1617643251074,2.90695,2093.4,2092.8,13.5181]
[1617643251375,2.90695,2093.4,2093.0,5.73]
[1617643251577,2.90695,2093.4,2093.3,5.75]
[1617643251777,2.90695,2093.4,2093.1,5.79]
[1617643252180,2.90695,2093.4,2093.3,5.75]
[1617643252379,2.90695,2093.4,2093.3,2.90695]
[1617643252780,2.90695,2093.4,2093.3,8.75695]
[1617643253379,2.90695,2093.4,2093.3,5.85]
[1617643253780,4.15,2093.3,2092.9,5.79]
[1617643253981,4.15,2093.3,2092.8,13.5181]
[1617643254380,4.15,2093.3,2092.9,5.73]
[1617643256389,4.15,2093.3,2093.2,2.90695]
[1617643256585,72.2718,2094.1,2093.2,2.90695]
[1617643256785,72.2718,2094.1,2093.2,8.63695]
[1617643257186,0.02619155,2096.2,2093.2,8.63695]
[1617643257387,0.02620737,2096.5,2093.2,8.63695]
[1617643257586,0.02622383,2096.8,2093.2,8.63695]
[1617643257787,70.5297,2096.3,2093.2,8.63695]
[1617643258186,100.5297,2096.3,2093.2,8.63695]
[1617643258388,100.5297,2096.3,2094.6,2.90695]
[1617643258786,70.5297,2096.3,2094.6,2.90695]
[1617643258986,70.5297,2096.3,2094.7,5.84]
[1617643260386,70.5297,2096.3,2094.9,2.90695]
[1617643260785,70.5297,2096.3,2095.0,5.77]
[1617643261786,71.4878,2096.3,2095.0,5.77]
[1617643261987,70.5297,2096.3,2095.0,5.77]
[1617643262187,70.5297,2096.3,2095.0,8.5299]
[1617643262389,70.5297,2096.3,2095.6,2.90695]
[1617643262592,70.5297,2096.3,2095.6,4.99335]
[1617643262790,15.0,2096.2,2095.7,5.73]
[1617643264492,2.90695,2095.8,2095.7,5.73]
[1617643265291,15.0,2096.2,2095.7,5.73]
[1617643266393,2.90695,2095.8,2095.7,5.73]
[1617643266995,2.90695,2095.8,2095.2,5.74]
[1617643267197,2.90695,2095.8,2095.3,12.7906]
[1617643267395,2.90695,2095.8,2095.7,5.72]
[1617643267594,2.90695,2095.8,2095.4,5.95]
[1617643267799,2.90695,2095.8,2095.4,3.12773282]
[1617643267995,2.90695,2095.8,2095.7,5.85]
[1617643268194,2.90695,2095.8,2095.4,5.86]
[1617643268396,2.90695,2095.5,2095.4,5.86]
[1617643268596,15.0,2096.2,2095.3,12.7906]
[1617643268799,15.0,2096.2,2095.5,5.83]
[1617643269206,15.0,2096.2,2095.3,12.7906]
[1617643269406,15.0,2096.2,2095.6,5.86]
[1617643269800,15.0,2096.2,2095.4,5.94]
[1617643269996,15.0,2096.2,2095.7,5.95]
[1617643270403,2.90695,2095.8,2095.5,2.90695]
[1617643271014,15.0,2096.2,2095.6,5.98]
[1617643271203,15.0,2096.2,2095.6,8.2653]
[1617643272397,17.90695,2096.2,2096.1,2.90695]
[1617643272598,17.90695,2096.2,2096.1,5.36615]
[1617643272898,17.90695,2096.2,2096.1,10.48615]
[1617643273100,15.0,2096.2,2096.1,10.48615]
[1617643273299,14.7445,2096.2,2096.1,10.48615]
[1617643275201,7.9525,2096.2,2096.1,10.48615]
[1617643276607,10.85945,2096.2,2096.1,10.48615]
[1617643276806,10.85945,2096.2,2096.1,8.02695]
[1617643277507,13.03045,2096.2,2096.1,8.02695]
[1617643278809,7.9525,2096.2,2096.1,8.02695]
[1617643280610,10.85945,2096.2,2096.1,8.02695]
[1617643281010,7.9525,2096.2,2096.1,8.02695]
[1617643282512,55.4367,2097.1,2096.1,8.02695]
[1617643282912,55.4367,2097.1,2096.1,10.60025]
[1617643283613,55.4367,2097.1,2096.2,2.0]
[1617643284011,55.4367,2097.1,2096.3,5.8]
[1617643284212,55.4367,2097.1,2096.4,2.0]
[1617643284515,55.4367,2097.1,2097.0,2.90695]
[1617643284718,55.1789,2097.1,2097.0,4.82985]
[1617643284914,55.1789,2097.1,2097.0,10.66985]
[1617643285317,54.9218,2097.1,2097.0,10.66985]
[1617643285518,54.2072,2097.1,2097.0,10.66985]
[1617643285918,52.4202,2097.1,2097.0,10.66985]
[1617643286521,47.776,2097.1,2097.0,10.66985]
[1617643286720,2.90695,2097.4,2097.0,10.66985]
[1617643286918,0.02662528,2098.5,2097.0,10.66985]
[1617643287319,0.0266372,2098.7,2097.0,10.66985]
[1617643287519,0.0266372,2098.7,2097.1,2.0]
[1617643287719,0.0266372,2098.7,2097.0,10.66985]
[1617643287919,0.0266372,2098.7,2097.2,5.99]
[1617643288320,0.0266372,2098.7,2097.1,5.81]
[1617643288521,0.02663835,2098.8,2098.1,2.90695]
[1617643288920,0.02663835,2098.8,2098.2,5.83]
[1617643289322,0.02663693,2098.9,2098.2,5.83]
[1617643290324,0.02664055,2099.0,2098.2,5.83]
[1617643290523,2.90695,2098.3,2098.2,5.83]
[1617643292827,2.90695,2098.3,2098.2,3.01084097]
[1617643293430,5.61505,2098.3,2098.2,3.01084097]
[1617643295831,2.90695,2098.3,2098.2,3.01084097]
[1617643297537,0.02669466,2099.1,2098.2,3.01084097]
[1617643297936,0.02670544,2099.3,2098.2,3.01084097]
[1617643298335,0.02671259,2099.4,2098.2,3.01084097]
[1617643298536,0.02671259,2099.4,2098.2,5.01084097]
[1617643298735,0.02671259,2099.4,2098.9,2.90695]
[1617643299137,0.02672298,2099.5,2098.9,2.90695]
[1617643299336,0.02672298,2099.5,2099.0,5.74]
[1617643299537,0.02670813,2099.3,2099.0,5.74]
[1617643300339,2.3024,2099.3,2099.0,5.74]
[1617643300538,68.6165,2099.3,2097.8,5.82]
[1617643300738,2.90695,2099.1,2098.4,2.90695]
[1617643301139,2.90695,2099.1,2098.5,5.89]
[1617643301339,0.02674654,2098.7,2098.5,5.89]
[1617643301639,0.02674839,2098.8,2098.5,5.89]
[1617643302041,0.02674596,2098.7,2098.5,5.89]
[1617643302641,2.90695,2098.6,2098.5,5.89]
[1617643302840,2.93372973,2098.6,2098.5,5.89]
[1617643303440,2.90695,2098.6,2098.5,5.89]
[1617643303640,2.90695,2098.6,2098.5,7.89]
[1617643306745,2.90695,2098.6,2098.5,5.89]
[1617643309548,5.38995,2098.6,2098.5,5.89]
[1617643310147,5.38995,2098.6,2097.2,5.73]
[1617643310347,5.38995,2098.6,2097.3,2.0]
[1617643310548,5.38995,2098.6,2098.5,5.85]
[1617643310748,5.38995,2098.6,2098.4,2.90695]
[1617643310948,5.38995,2098.6,2098.5,5.76]
[1617643311149,2.90695,2098.6,2098.5,5.76]
[1617643313450,2.93383454,2098.6,2098.5,5.76]
[1617643314353,2.90695,2098.6,2098.5,5.76]
[1617643317157,0.02689083,2099.2,2098.5,5.76]
[1617643317355,0.02689083,2099.2,2098.5,7.7159]
[1617643317555,0.02691163,2099.4,2098.5,7.7159]
[1617643318057,0.02691493,2099.5,2098.5,9.7159]
[1617643318756,2.93387722,2099.6,2099.4,2.90695]
[1617643318956,2.93387722,2099.6,2099.5,5.96]
[1617643319156,2.93387722,2099.6,2099.5,3.14230564]
[1617643319558,2.90695,2099.6,2099.5,3.14230564]
[1617643323059,2.93396573,2099.6,2099.5,3.14230564]
[1617643323462,2.93396573,2099.6,2099.5,5.14230564]
[1617643324763,2.90695,2099.6,2099.5,5.14230564]
[1617643325764,2.38695,2099.6,2099.5,5.14230564]
[1617643326665,0.02699823,2099.9,2099.5,5.14230564]
[1617643327266,0.02699823,2099.9,2099.5,69.59350564]
[1617643327466,0.0270043,2100.0,2099.5,69.59350564]
[1617643328066,0.02700747,2100.1,2099.5,69.59350564]
[1617643328468,0.02692955,2100.4,2099.5,69.59350564]
[1617643328868,0.64630921,2101.0,2099.5,69.59350564]
[1617643328869,0.0269331,2100.5,2100.3,2.90695]
[1617643329078,0.0269331,2100.5,2100.3,8.69695]
[1617643329268,0.02693818,2100.9,2100.3,8.69695]
[1617643330470,2.93389998,2101.0,2100.3,8.69695]
[1617643330868,2.93389998,2101.0,2100.9,2.90695]
[1617643331269,2.93389998,2101.0,2100.9,8.83695]
[1617643332872,3.17721695,2101.0,2100.9,8.83695]
[1617643334173,3.33943926,2101.0,2100.9,8.83695]
[1617643335274,3.33943926,2101.0,2100.9,5.93]
[1617643335474,61.25023926,2101.0,2100.9,5.93]
[1617643335676,61.25023926,2101.0,2099.3,5.91]
[1617643335677,60.81775,2101.0,2099.3,5.91]
[1617643335874,2.0,2100.9,2099.3,5.91]
[1617643336075,0.02699621,2100.1,2099.2,0.14]
[1617643336275,0.02699621,2100.1,2097.5,13.8441]
[1617643336276,1.89899621,2100.1,2099.4,5.81]
[1617643336475,0.02698834,2099.9,2099.4,5.81]
[1617643336674,0.02698834,2099.9,2099.2,5.82]
[1617643336874,0.02698834,2099.9,2099.5,5.95]
[1617643337075,0.02697796,2099.8,2099.5,5.95]
[1617643337275,0.02696614,2099.6,2099.4,69.1275]
[1617643337475,0.02696614,2099.6,2099.4,69.3375]
[1617643337676,1.9537,2099.6,2099.4,69.1275]
[1617643338076,1.9537,2099.6,2099.5,5.88]
[1617643339481,0.02698052,2099.9,2099.5,5.88]
[1617643339898,0.02695743,2100.3,2099.5,5.88]
[1617643340282,0.02698517,2100.8,2099.5,5.88]
[1617643340489,0.02698517,2100.8,2099.6,2.0]
[1617643340694,0.05396501,2101.3,2099.6,2.0]
[1617643340893,0.05396501,2101.3,2100.7,2.90695]
[1617643341081,0.05396501,2101.3,2100.8,5.87]
[1617643341486,56.10032507,2101.5,2100.8,5.87]
[1617643341487,0.05395713,2101.2,2100.8,5.87]
[1617643341685,2.22945713,2101.2,2100.8,5.87]
[1617643341889,0.05394178,2101.1,2100.8,5.87]
[1617643342089,0.05394178,2101.1,2099.7,5.84]
[1617643342285,0.05393872,2101.0,2099.5,5.94]
[1617643342481,0.05393872,2101.0,2100.9,5.8]
[1617643342684,0.05393872,2101.0,2099.8,5.97]
[1617643342882,0.05393872,2101.0,2100.0,2.90695]
[1617643343082,0.05393872,2101.0,2100.9,5.84]
[1617643343286,57.3901,2100.6,2100.1,5.98]
[1617643343486,59.3477,2100.6,2100.1,5.98]
[1617643343683,2.0,2100.5,2100.0,2.90695]
[1617643343884,2.05391209,2100.5,2100.2,5.83]
[1617643344283,0.64950651,2100.3,2100.1,2.97259309]
[1617643344483,0.64950651,2100.3,2100.0,2.90695]
[1617643344883,3.33994218,2100.1,2100.0,2.90695]
[1617643345084,5.21824218,2100.1,2098.2,2.0]
[1617643345282,5.21824218,2100.1,2100.0,5.91]
[1617643345684,5.21824218,2100.1,2098.3,7.92]
[1617643345888,5.21824218,2100.1,2100.0,5.87]
[1617643346284,0.0541341,2099.7,2098.4,5.88]
[1617643346483,0.0541341,2099.7,2098.3,2.0]
[1617643346883,0.0541414,2099.8,2099.5,2.90695]
[1617643347483,0.0541414,2099.8,2099.6,5.8]
[1617643348787,0.05416674,2100.1,2099.6,5.8]
[1617643348987,0.05416674,2100.1,2100.0,2.90695]
[1617643349387,0.05416674,2100.1,2100.0,8.79695]
[1617643349587,0.27076905,2100.2,2100.0,8.79695]
[1617643349987,0.27076905,2100.2,2100.0,5.89]
[1617643350389,0.27076905,2100.2,2098.3,2.0]
[1617643350590,0.27076905,2100.2,2098.4,5.85]
[1617643350789,0.27076905,2100.2,2100.1,5.85]
[1617643350992,3.17771905,2100.2,2100.1,8.75695]
[1617643351189,2.90695,2100.2,2100.1,2.90695]
[1617643351391,2.90695,2100.2,2100.1,8.78695]
[1617643351590,2.96110421,2100.2,2100.1,8.78695]
[1617643351889,2.90695,2100.2,2100.1,8.78695]
[1617643352690,4.90695,2100.2,2100.1,8.78695]
[1617643352890,4.90695,2100.2,2100.1,5.88]
[1617643353291,54.3074,2100.1,2099.4,5.97]
[1617643353690,54.3074,2100.1,2098.2,2.0]
[1617643353891,0.05406908,2099.7,2099.5,5.91]
[1617643354292,2.3367,2099.7,2098.2,4.16]
[1617643354492,2.3367,2099.7,2098.3,5.79]
[1617643354691,2.3367,2099.7,2099.6,5.82]
[1617643354891,5.24365,2099.7,2099.6,2.90695]
[1617643355091,5.51443326,2099.7,2099.6,5.63695]
[1617643355594,5.24365,2099.7,2099.6,5.63695]
[1617643358000,6.20925,2099.7,2099.6,5.63695]
[1617643358399,5.24365,2099.7,2099.6,5.63695]
[1617643359502,6.1119757,2099.7,2099.6,5.63695]
[1617643361305,5.24365,2099.7,2099.6,5.63695]
[1617643361609,6.11186066,2099.7,2099.6,5.63695]
[1617643362808,5.89496293,2099.7,2099.6,5.63695]
[1617643363208,5.24365,2099.7,2099.6,5.63695]
[1617643364210,5.89532558,2099.7,2099.6,5.63695]
[1617643364608,5.24365,2099.7,2099.6,5.63695]
[1617643364808,3.55875136,2099.7,2099.6,5.63695]
[1617643366010,2.90695,2099.7,2099.6,5.63695]
[1617643366311,3.55852041,2099.7,2099.6,5.63695]
[1617643367611,6.35622041,2099.7,2099.6,5.63695]
[1617643369013,3.55852041,2099.7,2099.6,5.63695]
[1617643369213,3.55852041,2099.7,2099.6,6.58905]
[1617643369417,2.90695,2099.7,2099.6,5.63695]
[1617643369813,0.43464134,2099.7,2099.6,5.63695]
[1617643370514,1.09135794,2099.7,2099.6,5.63695]
[1617643371516,1.09111915,2099.8,2099.6,5.63695]
[1617643371917,1.93608207,2099.7,2099.6,5.63695]
[1617643372315,1.09096205,2099.7,2099.6,5.63695]
[1617643373316,0.87302108,2099.8,2099.6,5.63695]
[1617643374118,0.65479748,2099.7,2099.6,5.63695]
[1617643375020,1.49976945,2099.7,2099.6,5.63695]
[1617643375220,0.65479748,2099.7,2099.6,5.63695]
[1617643375520,1.49974745,2099.7,2099.6,5.63695]
[1617643376018,0.65479748,2099.7,2099.6,5.63695]
[1617643376220,1.49973725,2099.7,2099.6,5.63695]
[1617643376819,0.65462101,2099.8,2099.6,5.63695]
[1617643381724,0.87232132,2099.9,2099.6,5.63695]
[1617643381924,0.84488193,2099.7,2099.6,5.63695]
[1617643382326,0.87232132,2099.9,2099.6,5.63695]
[1617643382725,0.87247448,2099.8,2099.6,5.63695]
[1617643383925,0.87306948,2099.7,2099.6,5.63695]
[1617643384725,1.91266204,2100.2,2099.6,5.63695]
[1617643384726,1.09112162,2099.8,2099.6,5.63695]
[1617643385127,3.75196245,2099.7,2099.6,5.63695]
[1617643385327,3.99794099,2099.7,2099.6,5.63695]
[1617643385727,4.84298059,2099.7,2099.6,5.63695]
[1617643386828,1.93603059,2099.7,2099.6,5.63695]
[1617643387230,0.8450396,2099.7,2099.6,5.63695]
[1617643387830,1.71872927,2099.7,2099.6,5.63695]
[1617643388231,1.09221344,2099.8,2099.6,5.63695]
[1617643388631,0.87374548,2099.7,2099.6,5.63695]
[1617643390234,0.84492352,2099.7,2099.6,5.63695]
[1617643392836,1.94023403,2099.7,2099.6,5.63695]
[1617643393335,0.84492352,2099.7,2099.6,5.63695]
[1617643396144,2.76558652,2099.7,2099.6,5.63695]
[1617643396542,5.56938652,2099.7,2099.6,2.73]
[1617643396942,5.54265587,2099.7,2099.6,2.73]
[1617643397142,5.54265587,2099.7,2098.2,5.93]
[1617643397345,5.54265587,2099.7,2099.6,5.89]
[1617643397346,3.64890874,2099.7,2099.6,5.89]
[1617643397545,6.63421666,2099.7,2099.6,5.89]
[1617643397745,18.63421666,2099.7,2099.5,5.74]
[1617643397945,14.8038,2099.7,2099.6,5.72]
[1617643398345,4.7086526,2099.6,2099.5,5.96]
[1617643398545,1.97193015,2099.6,2099.4,2.90695]
[1617643398953,1.97193015,2099.6,2099.5,6.0]
[1617643399350,4.87888015,2099.6,2099.5,6.0]
[1617643399550,7.6165608,2099.6,2099.5,6.0]
[1617643401352,4.7096108,2099.6,2099.5,6.0]
[1617643401755,3.88998784,2099.6,2099.5,6.9502]
[1617643402053,3.88998784,2099.6,2099.5,6.0]
[1617643402254,1.97193015,2099.6,2099.5,6.0]
[1617643402555,3.06728263,2099.6,2099.5,6.0]
[1617643403455,4.72104747,2099.6,2099.5,6.0]
[1617643403654,3.59423024,2099.6,2099.5,6.0]
[1617643404255,4.72074793,2099.6,2099.5,6.0]
[1617643404455,3.59423024,2099.6,2099.5,6.0]
[1617643404855,4.7207338,2099.6,2099.5,6.0]
[1617643405555,1.97161648,2099.6,2099.5,6.0]
[1617643405957,3.89868674,2099.6,2099.5,6.0]
[1617643406755,73.68228674,2099.6,2099.5,6.0]
[1617643406955,72.73938674,2099.6,2099.5,6.0]
[1617643407356,80.97873803,2099.6,2099.5,6.0]
[1617643407656,13.23480518,2099.6,2099.5,6.0]
[1617643407856,10.32785518,2099.6,2099.5,6.0]
[1617643408057,4.69502342,2099.6,2099.5,6.0]
[1617643408360,5.82165171,2099.6,2099.5,6.0]
[1617643408762,1.97174121,2099.6,2099.5,6.0]
[1617643409367,4.87869121,2099.6,2099.5,2.90695]
[1617643409561,21.09261972,2099.6,2099.5,2.90695]
[1617643409764,21.09261972,2099.6,2099.5,8.62695]
[1617643410958,16.14516528,2099.6,2099.5,8.62695]
[1617643411763,16.14516528,2099.6,2099.5,5.72]
[1617643412161,22.18550575,2099.6,2099.0,4.82]
[1617643412562,15.30005236,2099.6,2099.5,5.89]
[1617643412762,27.30005236,2099.6,2099.1,5.95]
[1617643412962,16.03357829,2099.6,2099.1,5.95]
[1617643413164,16.03357829,2099.6,2099.5,5.75]
[1617643413362,6.03697218,2099.4,2099.2,5.76]
[1617643413562,8.08097218,2099.4,2098.6,2.90695]
[1617643413763,21.32127345,2099.4,2098.7,0.88]
[1617643413962,21.32127345,2099.4,2099.3,5.74]
[1617643414362,21.32127345,2099.4,2098.8,5.72]
[1617643414562,21.32127345,2099.4,2099.3,5.88]
[1617643414763,8.08097218,2099.4,2099.3,5.88]
[1617643414962,6.03697218,2099.4,2098.9,5.99]
[1617643415163,7.16376235,2099.4,2099.3,5.9]
[1617643415362,7.16376235,2099.4,2099.2,2.90695]
[1617643415763,8.01247437,2099.5,2099.3,2.09]
[1617643416164,10.01247437,2099.5,2099.3,2.09]
[1617643416365,10.01247437,2099.5,2098.3,5.77]
[1617643416565,0.84511701,2099.4,2098.0,69.2468]
[1617643416967,1.09721751,2098.5,2098.4,5.87]
[1617643417367,1.09721751,2098.5,2098.4,2.90695]
[1617643417569,1.09678715,2098.6,2098.4,8.28695]
[1617643418768,0.87747983,2098.5,2098.4,8.28695]
[1617643419769,0.87762211,2098.6,2098.4,8.28695]
[1617643419968,0.87762211,2098.6,2098.4,10.92435]
[1617643420673,0.48132211,2098.6,2098.4,10.92435]
[1617643420872,0.84500599,2098.5,2098.4,10.92435]
[1617643421273,1.97182309,2098.7,2098.4,10.92435]
[1617643421676,1.09732093,2098.8,2098.4,10.92435]
[1617643421975,1.92342095,2099.1,2098.4,10.92435]
[1617643421976,0.84499314,2098.6,2098.4,10.92435]
[1617643422275,1.09760945,2098.9,2098.4,10.92435]
[1617643423476,1.09760945,2098.9,2098.8,2.90695]
[1617643423875,1.09760945,2098.9,2098.8,8.86695]
[1617643424776,0.21506927,2099.0,2098.8,8.86695]
[1617643424976,1.92611609,2099.3,2098.9,53.7429]
[1617643425176,2.75041684,2099.5,2098.9,53.7429]
[1617643425377,12.75163023,2099.6,2099.4,2.90695]
[1617643425577,12.75163023,2099.6,2099.4,4.82025]
[1617643425778,11.12649052,2099.6,2099.5,5.69]
[1617643428580,15.6321577,2099.6,2099.5,5.69]
[1617643430282,9.9049577,2099.6,2099.5,5.69]
[1617643430682,5.39929052,2099.6,2099.5,5.69]
[1617643431283,12.0,2099.7,2099.5,7.69]
[1617643431682,11.9232,2099.7,2099.5,7.69]
[1617643436088,11.9232,2099.7,2099.5,5.69]
[1617643436686,13.9158,2099.7,2099.5,5.69]
[1617643436887,15.85052256,2099.7,2099.5,5.69]
[1617643437087,1.93483991,2099.6,2099.5,5.69]
[1617643437888,13.85867999,2099.7,2099.5,5.69]
[1617643438889,11.9232,2099.7,2099.5,5.69]
[1617643439605,9.3965,2099.7,2099.5,7.69]
[1617643439991,0.44245283,2099.6,2099.5,7.69]
[1617643440690,0.44245283,2099.6,2099.5,65.9382]
[1617643442091,9.3965,2099.7,2099.5,65.9382]
[1617643442291,9.3965,2099.7,2099.5,63.9382]
[1617643442492,0.44262122,2099.6,2099.5,65.9382]
[1617643442693,0.44262122,2099.6,2099.5,7.69]
[1617643443093,9.3965,2099.7,2099.5,7.69]
[1617643443697,0.27646846,2099.6,2099.5,7.69]
[1617643444401,9.67280281,2099.7,2099.5,7.69]
[1617643444603,0.66312675,2100.0,2099.5,7.69]
[1617643444801,0.66310741,2100.1,2099.5,7.69]
[1617643445098,0.05540087,2099.6,2099.5,7.69]
[1617643445500,0.66579152,2100.0,2099.5,7.69]
[1617643446201,59.32979152,2100.3,2099.5,7.69]
[1617643446399,1.11058337,2100.5,2099.5,7.69]
[1617643446599,1.11058337,2100.5,2099.5,79.5041]
[1617643447600,1.94498097,2100.8,2100.4,2.90695]
[1617643447801,1.94498097,2100.8,2100.5,2.0]
[1617643448002,2.77709929,2101.1,2100.5,67.0087]
[1617643448201,2.77709929,2101.1,2100.6,5.87]
[1617643448402,2.77943839,2101.2,2100.6,5.87]
[1617643449203,2.78015211,2101.3,2100.6,5.87]
[1617643449602,2.78015211,2101.3,2101.2,2.90695]
[1617643450005,2.78015211,2101.3,2101.2,8.84695]
[1617643450203,2.78184635,2101.4,2101.2,8.84695]
[1617643452006,2.78277462,2101.5,2101.2,8.84695]
[1617643452806,2.78239304,2101.4,2101.2,8.84695]
[1617643453206,2.78440805,2101.3,2101.2,8.84695]
[1617643454007,5.00970919,2101.7,2101.2,8.84695]
[1617643454008,3.89662614,2101.4,2101.2,8.84695]
[1617643456209,2.78482475,2101.3,2101.2,8.84695]
[1617643456509,2.78501438,2101.4,2101.2,8.84695]
[1617643456811,2.77174919,2101.7,2101.2,8.84695]
[1617643457612,2.77174919,2101.7,2101.6,2.90695]
[1617643457814,2.77174919,2101.7,2101.6,5.47365]
[1617643458012,2.77287586,2101.8,2101.6,11.37365]
[1617643460214,1.94215566,2101.7,2101.6,11.37365]
[1617643461014,2.7706701,2101.8,2101.6,11.37365]
[1617643461613,1.93865807,2101.7,2101.6,11.37365]
[1617643461914,2.76832628,2101.9,2101.6,11.37365]
[1617643462514,2.76887258,2101.8,2101.6,11.37365]
[1617643462916,3.6129918,2101.8,2101.6,11.37365]
[1617643463214,2.76887258,2101.8,2101.6,11.37365]
[1617643463614,3.87689192,2102.0,2101.6,11.37365]
[1617643463615,2.76971464,2101.7,2101.6,11.37365]
[1617643463814,2.76971464,2101.7,2101.6,8.80695]
[1617643464014,5.47211464,2101.7,2101.6,8.80695]
[1617643464415,3.54656097,2101.7,2101.6,8.80695]
[1617643464916,6.31404201,2101.7,2101.6,8.80695]
[1617643465316,3.54656097,2101.7,2101.6,8.80695]
[1617643465716,6.45351097,2101.7,2101.6,8.80695]
[1617643466218,3.54656097,2101.7,2101.6,8.80695]
[1617643466617,6.31348483,2101.7,2101.6,8.80695]
[1617643467616,5.46932386,2101.7,2101.6,8.80695]
[1617643467818,2.76692386,2101.7,2101.6,8.80695]
[1617643468022,1.93429216,2101.7,2101.6,8.80695]
[1617643470721,4.44519216,2101.7,2101.6,8.80695]
[1617643471122,5.28934631,2101.7,2101.6,8.80695]
[1617643472224,3.35505415,2101.7,2101.6,8.80695]
[1617643472625,4.45807129,2101.7,2101.6,8.80695]
[1617643473025,3.35505415,2101.7,2101.6,8.80695]
[1617643473324,4.45809062,2101.7,2101.6,8.80695]
[1617643475727,4.45809062,2101.7,2101.6,5.9]
[1617643476128,4.45809062,2101.7,2101.3,5.73]
[1617643476329,3.35505415,2101.7,2101.3,5.73]
[1617643476528,3.35505415,2101.7,2101.6,5.73]
[1617643476728,3.35505415,2101.7,2101.3,5.97]
[1617643476933,1.10244211,2101.4,2101.3,5.97]
[1617643477132,1.10244211,2101.4,2101.2,2.90695]
[1617643477333,3.61329749,2101.7,2101.6,1.27389248]
[1617643477832,3.61329749,2101.7,2101.6,7.11389248]
[1617643478833,2.5109,2101.7,2101.6,7.11389248]
[1617643479036,1.10311512,2101.8,2101.6,7.11389248]
[1617643480642,1.10311512,2101.8,2101.6,8.07519248]
[1617643480839,1.10311512,2101.8,2101.6,7.11389248]
[1617643482545,4.00954112,2101.9,2101.6,7.11389248]
[1617643483540,2.90695,2101.9,2101.6,7.11389248]
[1617643483840,2.90695,2101.9,2101.8,2.90695]
[1617643484440,2.90695,2101.9,2101.8,8.62695]
[1617643486041,80.71099286,2102.3,2101.8,8.62695]
[1617643486241,79.6084,2102.3,2101.8,8.62695]
[1617643486441,1.12536895,2102.2,2101.8,8.62695]
[1617643487442,77.6084,2102.3,2101.8,8.62695]
[1617643487842,0.13784401,2101.9,2101.8,5.72]
[1617643488445,0.13784401,2101.9,2101.7,5.89]
[1617643488843,0.13784401,2101.9,2101.7,6.844]
[1617643489043,0.13785041,2101.8,2101.7,5.89]
[1617643489843,80.51535,2102.3,2101.7,5.89]
[1617643489844,0.13774809,2101.9,2101.7,8.79695]
[1617643491848,3.04469809,2101.9,2101.7,8.79695]
[1617643493246,0.13770395,2101.8,2101.7,8.79695]
[1617643493448,2.59700395,2101.8,2101.7,8.79695]
[1617643494646,2.4593,2101.8,2101.7,8.79695]
[1617643495048,0.13764018,2101.8,2101.7,8.79695]
[1617643495247,77.6084,2102.3,2101.7,8.79695]
[1617643495248,0.13765603,2101.9,2101.7,8.79695]
[1617643496248,5.603e-05,2101.9,2101.7,8.79695]
[1617643496450,2.90695,2102.1,2101.7,8.79695]
[1617643497951,2.90695,2102.1,2102.0,2.90695]
[1617643498352,2.90695,2102.1,2102.0,8.63695]
[1617643501355,2.90695,2102.1,2102.0,9.59035]
[1617643502557,2.02565,2102.1,2102.0,9.59035]
[1617643502856,2.02565,2102.1,2102.0,8.63695]
[1617643503664,2.03942019,2102.1,2102.0,8.63695]
[1617643503861,2.03942019,2102.1,2102.0,11.12965]
[1617643504061,0.01377019,2102.1,2102.0,11.12965]
[1617643506965,3.56987839,2102.4,2102.0,11.12965]
[1617643508066,3.56987839,2102.4,2102.3,2.90695]
[1617643508465,3.56987839,2102.4,2102.3,8.75695]
[1617643508765,3.56987839,2102.4,2102.3,5.85]
[1617643508970,2.90695,2102.4,2102.3,5.85]
[1617643509167,2.90695,2102.4,2102.2,5.89]
[1617643509366,2.90695,2102.4,2102.3,5.94]
[1617643509367,3.79001777,2102.4,2102.3,5.94]
[1617643509768,77.0977,2102.3,2101.6,1.27389248]
[1617643509968,77.0977,2102.3,2101.8,5.75]
[1617643510169,0.66209881,2102.0,2101.8,8.65695]
[1617643510369,0.66209881,2102.0,2101.8,2.90695]
[1617643510569,0.66209881,2102.0,2101.9,5.82]
[1617643510768,12.66215376,2102.1,2101.9,5.82]
[1617643512174,2.90695,2102.0,2101.9,5.82]